bitfinex/quotes_ETHUSD_20250622
["timestamp","ask_amount","ask_price","bid_price","bid_amount"]
[1750565673609,0.824,2280.4,2280.0,2.63150717]
[1750565673809,20.5259054,2280.3,2280.2,12.63134812]
[1750565675133,0.824,2280.4,2280.3,12.63123273]
[1750565675336,7.472,2280.4,2280.3,12.63123273]
[1750565675501,7.472,2280.4,2280.3,10.0]
[1750565675702,9.60689054,2280.4,2280.2,2.6312887]
[1750565676197,9.60689054,2280.4,2280.1,2.63143628]
[1750565676403,9.60689054,2280.4,2280.2,10.0]
[1750565676628,13.8769054,2280.3,2280.0,2.63151831]
[1750565676835,13.8769054,2280.3,2280.2,10.0]
[1750565677022,16.22528499,2280.3,2280.0,2.63153563]
[1750565677225,7.471,2280.2,2279.9,4.67662741]
[1750565677416,7.471,2280.2,2280.1,10.0]
[1750565677742,7.471,2280.2,2280.1,12.63146353]
[1750565678300,16.22528499,2280.3,2280.2,2.63134812]
[1750565678513,21.3469054,2280.3,2280.2,2.63134812]
[1750565679018,7.47,2280.3,2280.2,12.63134812]
[1750565679640,0.8269,2280.5,2280.2,10.0]
[1750565679831,7.47,2280.4,2280.2,12.6313182]
[1750565680233,7.47,2280.4,2280.2,10.0]
[1750565680427,7.47,2280.4,2280.2,12.63134493]
[1750565680635,7.469,2280.3,2280.2,12.63134493]
[1750565681235,0.22922056,2280.8,2280.3,12.63116944]
[1750565681435,7.69822056,2280.8,2280.7,12.63077125]
[1750565682524,30.8322,2280.7,2280.0,0.8283]
[1750565682724,13.0529054,2280.2,2280.1,2.63134925]
[1750565683037,13.0529054,2280.5,2280.2,12.63129834]
[1750565683245,7.468,2280.4,2280.3,2.63120061]
[1750565683556,1.27590503,2280.7,2280.5,2.63099247]
[1750565683757,7.468,2280.6,2280.5,2.63099247]
[1750565684327,7.468,2280.6,2280.2,2.63125598]
[1750565684645,7.468,2280.6,2279.9,2.8653]
[1750565684965,0.22922371,2280.5,2280.0,3.18127926]
[1750565685148,0.22922371,2280.5,2280.3,2.63111741]
[1750565685374,7.69522371,2280.5,2280.4,2.63111734]
[1750565685654,7.69522371,2280.5,2280.2,2.63130721]
[1750565685655,7.69522371,2280.5,2280.3,2.63117804]
[1750565686051,7.69522371,2280.5,2280.4,2.63111734]
[1750565686451,17.69522371,2280.5,2280.4,2.63111734]
[1750565686627,7.69522371,2280.5,2280.4,2.63111734]
[1750565687039,7.69522371,2280.5,2280.3,2.63118379]
[1750565687361,7.69522371,2280.5,2280.4,2.63111734]
[1750565687565,0.22922371,2280.5,2280.4,2.63111734]
[1750565687728,7.69422371,2280.5,2280.4,2.63111734]
[1750565688130,8.1865355,2280.5,2280.2,2.63128733]
[1750565688361,0.8173,2281.5,2281.4,2.62996405]
[1750565688663,4.0,2281.5,2281.4,3.45016405]
[1750565688877,20.5179054,2282.1,2282.0,2.62927256]
[1750565689032,9.59852054,2282.1,2282.0,2.62927256]
[1750565689229,20.74697793,2282.1,2281.7,4.66660988]
[1750565689438,30.0,2282.0,2281.7,2.037]
[1750565689765,17.465,2281.9,2281.8,2.62950302]
[1750565689952,7.464,2281.9,2281.8,2.62950302]
[1750565690131,13.71475064,2282.1,2281.9,2.62938493]
[1750565690482,10.0,2281.9,2281.8,2.62946864]
[1750565691279,11.37147506,2282.0,2281.9,2.62938779]
[1750565691630,17.464,2282.0,2281.9,2.62938779]
[1750565692345,0.67716897,2282.1,2281.7,2.037]
[1750565692549,18.14016897,2282.1,2282.0,2.62927256]
[1750565692878,0.22907253,2282.1,2282.0,2.62927256]
[1750565693070,0.22907253,2282.1,2282.0,3.4604924]
[1750565693363,17.462,2283.0,2282.9,2.62816473]
[1750565693662,10.0,2283.0,2282.9,2.62816473]
[1750565693860,10.22897353,2283.0,2282.9,2.62816473]
[1750565695165,0.22897353,2283.0,2282.9,3.45936761]
[1750565695463,0.22897353,2283.0,2282.9,4.27183902]
[1750565695671,0.22897353,2283.0,2282.9,4.22803614]
[1750565696876,13.0529054,2283.8,2282.9,4.22803614]
[1750565696877,16.49337768,2284.2,2283.6,2.62731758]
[1750565697052,37.458,2284.1,2283.7,2.62722185]
[1750565697259,30.0,2284.0,2283.9,2.62708524]
[1750565697550,0.22888127,2284.0,2283.9,2.62708524]
[1750565697754,0.22888127,2284.0,2283.9,3.45726606]
[1750565699174,0.22888127,2284.0,2283.9,3.41348524]
[1750565700085,0.22888127,2284.0,2283.7,2.036]
[1750565700262,10.0,2283.8,2283.3,5.45010085]
[1750565700460,10.0,2283.6,2283.3,4.66370085]
[1750565700782,10.0,2283.6,2283.3,2.036]
[1750565701155,10.0,2283.6,2283.5,2.62754543]
[1750565701355,0.22888127,2284.0,2283.9,2.62708524]
[1750565702882,0.22888127,2284.0,2283.9,4.23149042]
[1750565703398,7.453,2284.9,2284.0,2.62689761]
[1750565703562,0.22881039,2284.4,2284.3,2.62662522]
[1750565703767,10.0,2284.8,2284.2,2.62672508]
[1750565704061,0.22880235,2284.5,2284.1,2.035]
[1750565704265,0.22880235,2284.5,2284.4,2.62651024]
[1750565704468,0.22880235,2284.5,2284.4,4.66151024]
[1750565704708,0.22880235,2284.5,2284.1,2.98640146]
[1750565704709,0.22880235,2284.5,2284.1,2.62678404]
[1750565704855,0.22880235,2284.5,2284.2,2.62671691]
[1750565705050,0.22880235,2284.5,2284.3,2.62654055]
[1750565705289,10.7788,2284.4,2284.0,2.035]
[1750565705465,0.7788,2284.4,2284.0,4.66188814]
[1750565706197,10.7788,2283.7,2282.5,0.8317]
[1750565706369,10.0,2283.3,2282.9,2.62816409]
[1750565706574,10.0,2283.3,2282.8,2.62830547]
[1750565706789,0.7788,2283.1,2282.6,2.62851105]
[1750565706982,8.2298,2283.1,2282.7,2.62836906]
[1750565707311,8.2298,2283.1,2282.8,2.62833088]
[1750565707477,8.2298,2283.1,2282.6,0.04380352]
[1750565707478,10.05278,2283.1,2282.7,2.62843195]
[1750565707815,10.05278,2283.1,2282.6,2.62858144]
[1750565707816,10.0,2282.8,2282.6,2.62858144]
[1750565708219,10.0,2282.8,2282.4,4.65777148]
[1750565708520,10.0,2282.9,2282.3,2.62890498]
[1750565708690,10.0,2282.9,2282.4,0.36574772]
[1750565708884,10.0,2282.9,2282.5,2.62863346]
[1750565709084,10.0,2282.9,2282.6,0.36571567]
[1750565709900,7.451,2282.8,2282.6,0.36571567]
[1750565710105,10.0,2282.9,2282.6,2.99426717]
[1750565710315,10.0,2282.7,2282.6,2.99426717]
[1750565710613,10.0,2282.7,2282.6,0.36571567]
[1750565711587,11.7451,2282.7,2282.6,0.36571567]
[1750565711816,10.0,2282.7,2282.6,2.99429711]
[1750565712417,17.451,2282.7,2282.6,0.36571567]
[1750565712779,17.451,2282.7,2282.6,2.99429711]
[1750565713504,10.0,2282.7,2282.6,2.99429711]
[1750565713821,10.0,2282.1,2281.0,0.8189]
[1750565713982,7.465,2282.0,2281.5,2.62974878]
[1750565714183,10.0,2281.8,2281.5,2.62976523]
[1750565714379,10.0,2281.8,2281.5,2.62975958]
[1750565714714,10.0,2282.1,2281.3,0.04382651]
[1750565714914,7.465,2281.8,2281.5,2.62974935]
[1750565715085,7.508809,2281.8,2281.5,2.62974935]
[1750565715916,7.508809,2281.8,2281.4,2.62991749]
[1750565716217,0.043809,2281.7,2281.0,2.8479]
[1750565716418,1.63190902,2282.0,2281.7,2.62958449]
[1750565716621,10.0,2281.8,2281.7,2.62958449]
[1750565716782,10.0,2282.1,2281.7,2.62958449]
[1750565716979,7.506809,2282.0,2281.7,2.62958449]
[1750565717197,10.0,2281.9,2281.7,2.62958449]
[1750565717422,10.0,2281.9,2281.5,2.62980626]
[1750565717599,10.0,2281.9,2281.7,2.62951726]
[1750565717785,11.7463,2281.9,2281.7,2.62951726]
[1750565718121,11.7463,2281.9,2281.6,2.62970883]
[1750565718810,11.7463,2281.9,2281.3,2.63005706]
[1750565719021,11.7463,2281.9,2281.7,2.62952779]
[1750565719446,12.42248255,2281.9,2281.8,2.62950302]
[1750565719645,0.22908462,2281.9,2281.8,2.62950302]
[1750565719806,0.22908462,2281.9,2281.8,2.67332141]
[1750565720007,0.22908462,2281.9,2281.8,2.62950302]
[1750565721041,0.22908462,2281.9,2281.8,2.6733159]
[1750565721241,30.0,2282.8,2282.5,2.62863279]
[1750565721410,10.24531878,2282.9,2282.4,2.62876456]
[1750565721411,21.53534088,2282.7,2282.4,2.62876456]
[1750565721608,21.49153188,2282.7,2282.4,2.62876456]
[1750565721820,0.043809,2282.6,2282.4,2.62876456]
[1750565722546,10.0,2282.5,2282.4,2.6287049]
[1750565722717,20.13616541,2282.7,2282.6,2.62858144]
[1750565722917,27.60516541,2282.7,2282.5,2.62864361]
[1750565723651,27.60516541,2282.7,2282.6,2.62858144]
[1750565724024,27.60516541,2282.7,2282.5,2.6286419]
[1750565724548,10.0,2282.5,2282.4,2.62875007]
[1750565724752,11.15736727,2282.5,2282.4,2.62875007]
[1750565725054,10.0,2282.5,2282.4,2.62875007]
[1750565725551,17.60516541,2282.7,2282.4,2.62875007]
[1750565725754,10.0,2282.6,2282.1,3.40504116]
[1750565725950,0.67544663,2282.7,2282.6,2.62858144]
[1750565726253,8.14344663,2282.7,2282.5,2.62865232]
[1750565726454,10.04063219,2282.7,2282.5,2.62865232]
[1750565726853,10.0,2282.6,2282.5,2.62865232]
[1750565727355,17.463,2282.6,2282.5,2.62865232]
[1750565728338,17.463,2282.6,2282.4,2.62881124]
[1750565728339,17.463,2282.6,2282.4,2.62875458]
[1750565728527,17.463,2282.6,2282.5,2.6286966]
[1750565728728,19.46656322,2282.6,2282.5,2.6286966]
[1750565730263,19.46656322,2282.6,2282.0,2.029]
[1750565730476,12.00356322,2282.6,2282.5,2.6286966]
[1750565730666,19.45756322,2282.6,2282.5,2.6286966]
[1750565731360,10.0,2282.6,2282.5,2.6286966]
[1750565731561,17.454,2282.6,2282.5,2.6286966]
[1750565731973,17.454,2282.6,2282.5,2.6286966]
[1750565732381,17.453,2282.6,2282.5,2.6286966]
[1750565733079,17.453,2282.6,2282.0,2.029]
[1750565733276,0.043809,2282.5,2282.0,2.62927256]
[1750565733441,10.0,2282.6,2282.5,2.6286966]
[1750565733840,17.453,2282.6,2282.5,2.6286966]
[1750565734389,10.0,2282.6,2282.5,2.6286966]
[1750565734594,17.453,2282.6,2282.5,2.6286966]
[1750565735144,17.453,2282.6,2282.4,2.62878932]
[1750565735386,2.75891654,2282.5,2282.4,2.62878932]
[1750565736543,2.75891654,2282.5,2281.8,0.7625]
[1750565736746,2.75891654,2282.5,2281.2,3.18008934]
[1750565736747,19.46071878,2282.3,2281.6,2.029]
[1750565736945,10.0,2282.1,2282.0,2.62924727]
[1750565737275,10.0,2282.1,2281.9,2.62929803]
[1750565737276,12.69575278,2282.1,2281.9,2.62929803]
[1750565737590,10.8217,2281.9,2281.7,2.62956126]
[1750565737795,17.454,2281.8,2281.6,2.62967372]
[1750565737944,10.28157,2281.8,2281.5,2.62975101]
[1750565738146,10.043809,2281.7,2281.2,0.8221]
[1750565738368,7.453,2281.6,2281.2,3.45226239]
[1750565738553,7.453,2281.6,2281.1,2.029]
[1750565738554,7.453,2281.6,2281.3,2.63007881]
[1750565738755,7.453,2281.6,2281.5,2.62984878]
[1750565738960,9.524866,2281.6,2281.4,2.62993037]
[1750565739272,9.481057,2281.6,2281.5,2.62984878]
[1750565739468,0.8217,2281.5,2280.5,0.8221]
[1750565739768,30.0,2281.3,2281.0,2.63039238]
[1750565739944,17.453,2281.2,2280.7,2.63077125]
[1750565740145,7.453,2281.1,2281.0,2.63042525]
[1750565740984,10.0,2281.0,2280.9,2.63052624]
[1750565741280,7.453,2281.1,2281.0,2.63042525]
[1750565741585,0.043809,2281.3,2280.6,1.61377625]
[1750565741762,7.454,2281.1,2280.8,2.63056063]
[1750565741965,7.454,2281.1,2280.9,2.63052617]
[1750565742163,10.819509,2281.0,2279.9,8.10724568]
[1750565742367,10.0,2280.8,2280.6,2.63077223]
[1750565742567,10.0,2280.8,2280.0,2.029]
[1750565742568,7.458,2280.7,2280.5,2.63093994]
[1750565742764,10.0,2280.6,2280.0,2.029]
[1750565742954,17.459,2280.5,2280.4,2.63111734]
[1750565744389,10.0,2280.5,2280.4,2.63111734]
[1750565745399,17.457,2280.5,2280.0,2.029]
[1750565745555,10.0,2280.5,2280.4,2.63111734]
[1750565745757,7.458,2280.5,2280.4,2.63111734]
[1750565746462,7.458,2280.5,2280.3,2.63111863]
[1750565746956,7.458,2280.5,2280.4,2.63111734]
[1750565747584,7.46,2280.5,2280.4,2.63111734]
[1750565748591,10.0,2280.7,2280.1,0.04384952]
[1750565748889,10.7757,2281.0,2280.8,2.63064199]
[1750565749076,10.0,2280.8,2280.5,2.63089387]
[1750565749461,10.0,2280.8,2280.6,2.63083059]
[1750565749659,10.0,2280.8,2280.4,2.63111734]
[1750565749889,0.043809,2280.7,2280.4,2.63110067]
[1750565750066,7.458,2280.6,2280.4,2.63110067]
[1750565751391,1.7500809,2280.7,2280.4,2.63110067]
[1750565751590,7.458,2280.6,2280.5,2.63090594]
[1750565751772,7.458,2280.6,2280.4,2.63106484]
[1750565752178,7.501809,2280.6,2280.4,2.63106484]
[1750565752358,13.04685468,2280.5,2280.3,4.66]
[1750565752569,10.0,2280.3,2280.0,2.03]
[1750565752876,17.458,2280.2,2280.1,2.63141695]
[1750565753803,10.0,2280.1,2279.7,2.63183273]
[1750565754092,10.0,2279.9,2279.8,2.6318098]
[1750565754898,17.459,2279.9,2279.8,2.6318098]
[1750565756482,19.71763222,2279.9,2279.7,2.63186699]
[1750565756800,17.459,2279.9,2279.8,2.6318098]
[1750565758013,10.8065,2280.1,2280.0,2.63157894]
[1750565758203,18.2655,2280.1,2279.9,2.63163974]
[1750565758405,0.043809,2280.0,2279.7,2.63190692]
[1750565758612,10.0,2279.8,2279.7,2.63190692]
[1750565758779,10.0,2279.8,2279.4,2.63222399]
[1750565759107,10.0,2279.6,2279.4,2.63221128]
[1750565759409,17.46,2279.5,2279.4,2.63221128]
[1750565760296,7.46,2279.5,2279.2,2.03]
[1750565760607,2.17144447,2279.4,2279.2,2.03]
[1750565760774,10.0,2279.2,2279.1,2.63261813]
[1750565761603,7.46,2279.2,2279.1,2.63261813]
[1750565762006,10.8258,2279.8,2279.2,3.42750263]
[1750565762209,13.04685468,2279.6,2279.2,2.63238854]
[1750565762409,20.55997537,2279.5,2279.2,2.63240912]
[1750565762607,10.0,2279.2,2278.8,4.66386166]
[1750565762799,17.461,2279.1,2279.0,2.63272966]
[1750565763990,17.461,2279.1,2278.8,4.66394213]
[1750565764186,10.0,2279.0,2278.9,2.63284918]
[1750565764407,7.461,2279.1,2278.9,2.63279327]
[1750565764620,7.461,2279.1,2278.9,2.63284918]
[1750565764806,10.59436547,2279.1,2278.8,4.66394213]
[1750565764980,10.59436547,2279.1,2278.9,2.63284918]
[1750565765312,10.59436547,2279.1,2279.0,2.63273365]
[1750565766608,10.59436547,2279.1,2278.3,0.6667]
[1750565766812,13.04685468,2278.5,2278.3,0.6667]
[1750565767011,17.461,2278.4,2278.3,0.6667]
[1750565767610,20.52247851,2278.4,2278.3,0.6667]
[1750565767810,10.0,2278.4,2278.3,0.6667]
[1750565768026,17.462,2278.4,2278.3,0.6667]
[1750565768324,17.462,2278.4,2277.5,2.2560067]
[1750565768325,30.0,2277.7,2277.5,0.0907199]
[1750565768486,23.09066368,2277.6,2277.2,2.63472595]
[1750565768686,3.18400686,2277.9,2277.0,2.63497054]
[1750565768687,0.8052,2278.0,2277.5,2.63446761]
[1750565768892,10.849009,2278.3,2278.1,2.63370981]
[1750565769102,10.849009,2278.3,2277.9,2.63392546]
[1750565769103,10.0,2278.0,2277.9,2.63392546]
[1750565769322,7.477,2278.0,2277.4,2.63458329]
[1750565769525,7.477,2278.0,2277.0,2.63496042]
[1750565769526,40.0,2277.9,2277.5,2.63435883]
[1750565769690,10.0,2277.7,2277.3,2.63469898]
[1750565769891,7.482,2277.6,2277.5,2.63446761]
[1750565770128,7.525809,2277.6,2277.4,2.6345798]
[1750565770428,9.54992121,2277.6,2277.5,2.63446761]
[1750565770622,7.486,2277.6,2277.5,2.63446761]
[1750565770800,0.043809,2277.8,2277.5,2.63446761]
[1750565771004,10.0,2277.9,2277.8,2.63412064]
[1750565771201,17.491,2277.9,2277.8,2.63412064]
[1750565771723,0.8052,2278.5,2278.4,2.63342696]
[1750565771948,7.497,2278.5,2278.0,0.04389027]
[1750565772113,10.0,2278.4,2278.3,2.63354016]
[1750565772827,10.0,2278.4,2277.9,0.7888]
[1750565773028,10.0,2278.2,2278.1,2.63366929]
[1750565773333,9.50611221,2278.6,2278.2,2.63359331]
[1750565773334,10.0,2278.5,2278.2,2.63359331]
[1750565773495,7.494,2278.4,2278.2,2.63359331]
[1750565774235,7.494,2278.4,2278.3,2.63354255]
[1750565774437,10.0,2278.5,2278.4,2.63342696]
[1750565774642,7.68644796,2278.5,2278.4,2.63334343]
[1750565774848,7.68644796,2278.5,2278.3,2.6334912]
[1750565775049,0.19544796,2278.4,2278.3,2.6334912]
[1750565775198,2.00790176,2278.4,2278.3,2.63354255]
[1750565775404,0.19544796,2278.4,2278.3,2.63354255]
[1750565775833,17.68544796,2278.4,2278.3,2.63354255]
[1750565776529,10.19544796,2278.4,2278.3,2.63354255]
[1750565776702,10.19544796,2278.4,2278.3,3.38814255]
[1750565776911,0.44529345,2278.9,2278.5,2.63331138]
[1750565777158,0.22936219,2279.0,2278.8,2.63296471]
[1750565777323,17.485,2278.9,2278.8,2.63296471]
[1750565778149,10.0,2278.9,2278.8,2.63296471]
[1750565778351,0.22936219,2279.0,2278.9,3.39124918]
[1750565779147,0.22936219,2279.0,2278.9,2.63284918]
[1750565781649,0.22936219,2279.0,2278.9,3.39124918]
[1750565784070,0.22936219,2279.0,2278.9,4.03754252]
[1750565784370,7.466,2279.5,2279.0,2.63273365]
[1750565784531,17.466,2279.6,2279.5,2.63215617]
[1750565784938,17.69531964,2279.6,2279.5,2.63215617]
[1750565785172,10.22931964,2279.6,2279.5,3.38525617]
[1750565785669,0.22931964,2279.6,2279.5,3.38525617]
[1750565786232,0.42996539,2280.2,2280.1,2.63146353]
[1750565786434,0.22929746,2279.9,2279.8,2.032]
[1750565786650,0.22929746,2279.9,2279.8,4.6637673]
[1750565786970,10.0,2280.5,2280.3,2.63120753]
[1750565787170,10.27501221,2280.6,2280.2,2.63133859]
[1750565787359,18.75943923,2280.5,2280.4,2.63104427]
[1750565787828,11.29443923,2280.5,2280.4,2.63104427]
[1750565788036,0.22927498,2280.5,2280.4,2.63104427]
[1750565788434,10.66876978,2280.5,2280.4,2.63104427]
[1750565788673,10.66876978,2280.5,2280.0,3.44444793]
[1750565788674,10.22927498,2280.5,2280.0,3.44444793]
[1750565789843,10.22927498,2280.5,2280.0,2.8449]
[1750565791369,0.22927498,2280.5,2280.1,0.04385189]
[1750565791570,0.22927498,2280.5,2280.4,2.63111734]
[1750565791781,0.22927498,2280.5,2280.3,2.63118455]
[1750565791976,0.22927498,2280.5,2280.3,2.63122109]
[1750565792435,0.22927498,2280.5,2280.3,4.66]
[1750565792642,7.69227498,2280.5,2280.3,4.66]
[1750565792842,10.0,2280.4,2280.3,4.66]
[1750565793576,2.6313024,2280.3,2279.9,2.031]
[1750565793778,0.44867433,2280.3,2279.9,2.031]
[1750565793939,7.463,2280.2,2279.7,0.7935]
[1750565794282,7.463,2280.2,2279.6,9.32303896]
[1750565794283,10.0,2280.0,2279.6,9.32303896]
[1750565794574,10.0,2280.0,2279.6,2.031]
[1750565794740,0.7463,2280.1,2279.6,2.031]
[1750565794936,12.63165645,2280.0,2279.6,2.031]
[1750565795145,10.90316602,2279.9,2279.4,15.99676851]
[1750565795341,11.30548062,2279.9,2279.4,15.99676851]
[1750565795640,11.30548062,2279.9,2279.4,15.20326851]
[1750565795641,12.09271863,2279.9,2279.4,15.20326851]
[1750565796041,12.09271863,2279.9,2279.5,2.63213784]
[1750565796661,12.09271863,2279.9,2279.4,13.17217584]
[1750565796885,0.043809,2279.8,2279.4,10.54]
[1750565797182,10.043809,2279.8,2279.0,0.8309]
[1750565797336,2.21365276,2279.7,2279.3,4.66338457]
[1750565797539,10.0,2279.5,2279.3,4.66338457]
[1750565797773,10.0,2279.5,2279.3,2.031]
[1750565798190,10.0,2279.5,2279.3,4.66337827]
[1750565799043,10.0,2279.5,2279.3,2.031]
[1750565799883,10.0,2279.5,2279.3,4.66338423]
[1750565800440,10.0,2279.5,2279.3,2.031]
[1750565801058,10.0,2279.5,2278.9,0.60242095]
[1750565801059,13.18137324,2279.5,2278.8,2.6329389]
[1750565801382,8.2855,2279.4,2279.2,2.63250263]
[1750565801585,8.2855,2279.4,2279.0,2.63266917]
[1750565802149,10.91777651,2279.4,2278.9,4.66480014]
[1750565802450,8.2855,2279.4,2278.9,4.66474994]
[1750565802648,0.22930908,2279.3,2279.1,2.63259588]
[1750565802982,0.22930908,2279.3,2279.2,2.63250263]
[1750565803186,7.69130908,2279.3,2279.2,2.63250263]
[1750565803893,0.22930908,2279.3,2279.2,2.63250263]
[1750565804962,0.22930908,2279.3,2279.0,2.63270488]
[1750565805166,0.22930908,2279.3,2279.2,2.63250263]
[1750565806698,0.22930908,2279.3,2279.0,2.63271907]
[1750565807200,0.806809,2279.2,2278.9,4.66479234]
[1750565807657,10.0,2279.0,2278.9,2.032]
[1750565807854,10.0,2279.0,2278.9,4.66484918]
[1750565808502,17.462,2279.1,2279.0,2.63264791]
[1750565808672,10.0,2279.1,2279.0,2.63264791]
[1750565810272,10.0,2279.1,2279.0,3.4853404]
[1750565810596,10.0,2279.1,2279.0,3.44146553]
[1750565810772,10.0,2279.1,2279.0,2.63264791]
[1750565811259,10.0,2279.1,2278.9,4.66484918]
[1750565811581,10.0,2279.1,2279.0,2.63273365]
[1750565813225,17.69130908,2279.3,2279.2,2.63250263]
[1750565813561,10.22930908,2279.3,2279.2,2.63250263]
[1750565813760,17.69030908,2279.3,2279.2,2.63250263]
[1750565819732,7.68930908,2279.3,2279.2,2.63250263]
[1750565820300,7.68930908,2279.3,2279.1,2.63251772]
[1750565820601,7.68930908,2279.3,2279.2,2.63250263]
[1750565821237,17.68930908,2279.3,2279.2,2.63250263]
[1750565821996,17.68930908,2279.3,2279.1,2.63255256]
[1750565822202,0.043809,2279.2,2278.9,2.032]
[1750565822402,10.0,2279.0,2278.9,4.66484918]
[1750565822802,10.0,2279.0,2278.9,2.032]
[1750565823103,10.22933261,2279.0,2278.9,2.032]
[1750565823734,10.22933261,2279.0,2278.7,2.63305949]
[1750565823937,7.459,2278.9,2278.7,2.63305949]
[1750565824633,7.459,2278.9,2278.6,2.63317838]
[1750565824834,10.0,2278.7,2278.5,2.032]
[1750565825010,8.320909,2278.6,2278.1,4.66573078]
[1750565825216,8.320909,2278.6,2278.2,2.63365649]
[1750565825217,10.0,2278.4,2278.2,2.63365649]
[1750565825403,10.0,2278.7,2278.5,2.63331138]
[1750565825605,0.8181,2278.9,2278.5,2.63331138]
[1750565825606,0.22933261,2279.0,2278.9,2.63284918]
[1750565825915,0.22933261,2279.0,2278.9,2.67672319]
[1750565826244,0.22933261,2279.0,2278.9,2.63284918]
[1750565827743,0.22933261,2279.0,2278.9,3.42714918]
[1750565827942,0.22933261,2279.0,2278.9,4.2964686]
[1750565829343,10.0,2279.9,2279.8,2.63171986]
[1750565829517,0.8116,2280.1,2279.9,2.63162209]
[1750565829720,17.458,2280.0,2279.9,2.63162209]
[1750565829977,9.32739786,2280.0,2279.8,2.63175817]
[1750565830251,9.32739786,2280.0,2279.9,2.63169437]
[1750565830564,0.22926602,2280.1,2280.0,2.63157894]
[1750565830746,7.68726602,2280.1,2280.0,2.63157894]
[1750565830952,17.68726602,2280.1,2280.0,2.63157894]
[1750565831163,17.68626602,2280.1,2280.0,2.63157894]
[1750565831325,10.22926602,2280.1,2280.0,2.63157894]
[1750565832057,0.22926602,2280.1,2280.0,2.63157894]
[1750565833554,0.22926602,2280.1,2280.0,5.44467894]
[1750565833784,0.8244,2280.9,2280.8,2.63065591]
[1750565833785,0.043809,2280.9,2280.8,2.63065591]
[1750565833965,7.456,2281.2,2280.9,2.63047572]
[1750565834273,16.84911791,2281.1,2280.9,2.63048053]
[1750565834584,17.03446198,2281.1,2281.0,2.63042525]
[1750565834968,23.28886198,2281.1,2281.0,2.63042525]
[1750565835169,0.22915307,2281.1,2281.0,2.63042525]
[1750565836103,0.22915307,2281.1,2281.0,4.65942525]
[1750565836305,0.22915307,2281.1,2281.0,5.4873598]
[1750565836599,0.22915307,2281.1,2281.0,5.44352525]
[1750565836821,0.22915307,2281.1,2281.0,6.29476455]
[1750565837174,0.22915307,2281.1,2281.0,6.25093011]
[1750565837367,13.88410891,2282.0,2281.8,2.62950302]
[1750565837572,11.454,2281.9,2281.8,2.62950302]
[1750565837802,17.454,2281.9,2281.8,2.62950302]
[1750565838000,17.454,2281.9,2281.2,2.63010974]
[1750565838202,10.0,2281.7,2281.6,2.62963568]
[1750565838905,7.454,2281.8,2281.5,2.62975671]
[1750565839082,7.454,2281.8,2281.5,2.62984878]
[1750565839083,10.0,2281.6,2281.5,2.62984878]
[1750565839810,10.0,2281.6,2281.4,2.62992533]
[1750565840104,17.452,2281.8,2281.6,2.62965236]
[1750565840693,20.97118071,2281.8,2281.0,6.25083049]
[1750565840878,0.043809,2281.7,2281.4,2.6298808]
[1750565841078,0.043809,2281.7,2281.5,2.62981465]
[1750565841509,10.8244,2281.5,2281.0,2.029]
[1750565841808,10.0,2281.3,2281.1,2.63030993]
[1750565842328,0.8109,2281.8,2281.3,2.63006057]
[1750565842526,10.0,2281.6,2281.1,0.46593099]
[1750565842709,0.043809,2281.5,2281.2,2.63013869]
[1750565843035,0.043809,2281.5,2281.2,2.63014874]
[1750565843036,10.0,2281.3,2281.2,2.63014874]
[1750565843346,10.8109,2281.3,2281.1,4.65829758]
[1750565843503,10.8109,2281.3,2281.0,2.63037788]
[1750565843504,13.94296089,2281.3,2281.0,2.63037788]
[1750565843708,13.94296089,2281.3,2281.1,2.63030212]
[1750565844019,10.8109,2281.3,2281.2,2.63019463]
[1750565844223,18.2609,2281.3,2281.2,2.63019463]
[1750565844382,10.8109,2281.3,2281.2,2.63019463]
[1750565844688,10.0,2281.3,2281.2,2.63019463]
[1750565845205,0.8109,2281.6,2281.5,2.62984878]
[1750565845410,10.0,2281.6,2281.5,2.62984878]
[1750565846222,7.449,2281.7,2281.4,0.8177]
[1750565846382,17.449,2281.7,2281.6,2.62973352]
[1750565847291,30.50870891,2281.7,2281.6,2.62973352]
[1750565847902,23.05970891,2281.7,2281.6,2.62973352]
[1750565848111,30.50870891,2281.7,2281.6,2.62973352]
[1750565848708,17.449,2281.7,2281.6,2.62973352]
[1750565848873,17.448,2281.7,2281.6,2.62973352]
[1750565849073,10.0,2281.7,2281.6,3.40153352]
[1750565849502,10.0,2281.7,2281.6,2.62973352]
[1750565850231,32.25250891,2281.7,2281.5,2.62979219]
[1750565850617,32.25250891,2281.7,2281.3,4.6570205]
[1750565850819,0.862009,2281.6,2281.4,2.62995927]
[1750565850992,0.862009,2281.6,2281.3,4.65701912]
[1750565851193,10.0,2281.4,2281.3,2.027]
[1750565851428,23.05970891,2281.4,2281.2,2.63013071]
[1750565851731,17.448,2281.3,2281.2,2.63013071]
[1750565851930,17.448,2281.3,2281.1,2.63029989]
[1750565851931,10.0,2281.2,2281.1,2.63024529]
[1750565852090,3.05077089,2281.2,2281.0,0.1]
[1750565852297,18.2652,2281.1,2281.0,2.73042525]
[1750565852496,17.447,2281.1,2281.0,2.73042525]
[1750565852842,10.0,2281.1,2281.0,2.73042525]
[1750565853216,10.2291259,2281.1,2281.0,2.73042525]
[1750565855046,10.83805743,2281.1,2281.0,0.1]
[1750565855840,23.89776634,2281.1,2281.0,0.1]
[1750565856436,27.28387627,2281.1,2281.0,0.1]
[1750565856730,24.65356634,2281.1,2281.0,0.1]
[1750565857240,54.65356634,2281.1,2281.0,0.1]
[1750565858544,30.0,2281.0,2280.8,2.63065542]
[1750565858742,30.0,2281.0,2280.5,2.027]
[1750565858743,4.39434887,2281.0,2280.9,2.63054057]
[1750565858909,11.84034887,2281.0,2280.8,2.63060059]
[1750565859324,11.84034887,2281.0,2280.7,2.63073072]
[1750565859645,10.0,2280.8,2280.7,2.63073072]
[1750565859813,10.0,2280.8,2280.2,2.023]
[1750565859814,0.7587,2280.7,2280.2,2.023]
[1750565860144,10.0,2280.5,2280.4,2.63111734]
[1750565860723,10.0,2280.5,2280.2,4.65430716]